[Event "FIDE WCCC G10 2018"]
[Site "Santiago de Compostela"]
[Date "2018.11.07"]
[Round "3"]
[White "Kleymenova, Valeria"]
[Black "Wu, Abbie"]
[Result "1-0"]
[ECO "A45"]
[WhiteElo "1773"]
[BlackElo "1446"]
[Annotator "NA RC"]
[PlyCount "89"]
[EventDate "2018.11.04"]
[EventType "swiss"]
[EventCountry "ESP"]
[SourceTitle "playchess.com"]
[Source "ChessBase"]
[SourceQuality "1"]
[TimeControl "40/5400+30:1800+30"]

1. d4 {[%emt 0:00:00]} Nf6 {[%emt 0:00:00]} 2. c3 {[%emt 0:00:00]} d5 {[%emt 0:00:00]} 3. e3 {[%emt 0:00:00]} c5 {[%emt 0:00:50]} 4. Bd3 {[%emt 0:00:25]} Nc6 {[%emt 0:00:38]} 5. Nd2 {[%emt 0:00:31]} Qb6 {[%emt 0:01:48]} 6. f4 {[%emt 0:00:23]} Bg4 {[%emt 0:02:12]} 7. Ngf3 {[%emt 0:01:48]} c4 {[%emt 0:02:37]} 8. Bc2 {[%emt 0:00:21]} e6 {[%emt 0:01:53]} 9. O-O {[%emt 0:00:19]} Be7 {[%emt 0:01:15]} 10. Qe1 {[%emt 0:01:07]} Bf5 {[%emt 0:03:46]} 11. e4 {[%emt 0:03:54]} Bg6 {[%emt 0:08:30]} 12. Ne5 {[%emt 0:04:57]} Nxd4 {[%emt 0:10:41]} 13. cxd4 {[%emt 0:01:28]} Qxd4+ {[%emt 0:00:08]} 14. Kh1 {[%emt 0:01:49]} Bb4 {[%emt 0:06:39]} 15. Nef3 {[%emt 0:05:51]} Qc5 {[%emt 0:02:11]} 16. Qe2 {[%emt 0:07:09]} Bxd2 {[%emt 0:04:07]} 17. Nxd2 {[%emt 0:00:38]} Bh5 {[%emt 0:01:07]} 18. Qe1 {[%emt 0:06:20]} d4 {[%emt 0:03:08]} 19. Bd1 {[%emt 0:02:13]} Bxd1 {[%emt 0:06:24]} 20. Qxd1 {[%emt 0:00:09]} Qc6 {[%emt 0:03:59]} 21. e5 {[%emt 0:01:50]} Ne4 {[%emt 0:05:30]} 22. Nxe4 {[%emt 0:03:23]} Qxe4 {[%emt 0:00:12]} 23. Qa4+ {[%emt 0:00:33]} Qc6 {[%emt 0:00:09]} 24. Qxc6+ {[%emt 0:00:13]} bxc6 {[%emt 0:00:07]} 25. Bd2 {[%emt 0:00:04]} Rb8 {[%emt 0:01:30]} 26. Rab1 {[%emt 0:02:07]} O-O {[%emt 0:08:22]} 27. Rfc1 {[%emt 0:00:11]} c3 {[%emt 0:00:18]} 28. bxc3 {[%emt 0:00:14]} d3 {[%emt 0:00:06]} 29. Kg1 {[%emt 0:00:40]} c5 {[%emt 0:01:49]} 30. Kf2 {[%emt 0:00:32]} c4 {[%emt 0:00:06]} 31. Ke3 {[%emt 0:00:24]} a6 {[%emt 0:01:17]} 32. a4 {[%emt 0:01:15]} Rfd8 {[%emt 0:02:07]} 33. Be1 {[%emt 0:00:42]} Kf8 {[%emt 0:01:32]} 34. Kd2 {[%emt 0:00:29]} Rdc8 {[%emt 0:01:00]} 35. Bf2 {[%emt 0:00:13]} Ke8 {[%emt 0:01:22]} 36. Ba7 {[%emt 0:00:56]} Ra8 {[%emt 0:02:12]} 37. Rb7 {[%emt 0:00:38]} Rc6 {[%emt 0:01:05]} 38. Rcb1 {[%emt 0:00:19]} Rcc8 {[%emt 0:00:11]} 39. Bb8 {[%emt 0:01:35]} Rc6 {[%emt 0:00:57]} 40. Bd6 {[%emt 0:00:00]} Rac8 {[%emt 0:00:00]} 41. Re7+ {[%emt 0:00:32]} Kf8 {[%emt 0:01:49]} 42. Rbb7 {[%emt 0:00:13]} f6 {[%emt 0:02:11]} 43. Rf7+ {[%emt 0:00:15]} Ke8 {[%emt 0:00:15]} 44. Rbe7+ {[%emt 0:00:07]} Kd8 {[%emt 0:00:09]} 45. Rf8# {[%emt 0:00:05]} 1-0

[Event "FIDE WCCC G10 2018"]
[Site "Santiago de Compostela"]
[Date "2018.11.07"]
[Round "3"]
[White "Vlasova, Olesia"]
[Black "Elangovan, Ramya"]
[Result "1-0"]
[ECO "B46"]
[WhiteElo "1639"]
[BlackElo "1352"]
[Annotator "NA RC"]
[PlyCount "79"]
[EventDate "2018.11.04"]
[EventType "swiss"]
[EventCountry "ESP"]
[SourceTitle "playchess.com"]
[Source "ChessBase"]
[SourceQuality "1"]
[TimeControl "40/5400+30:1800+30"]

1. e4 {[%emt 0:00:00]} c5 {[%emt 0:00:00]} 2. Nf3 {[%emt 0:00:00]} e6 {[%emt 0:00:00]} 3. d4 {[%emt 0:00:00]} cxd4 {[%emt 0:00:00]} 4. Nxd4 {[%emt 0:00:00]} Nc6 {[%emt 0:00:00]} 5. Nc3 {[%emt 0:01:28]} a6 {[%emt 0:00:47]} 6. Be2 {[%emt 0:01:17]} Qc7 {[%emt 0:00:54]} 7. Nb3 {[%emt 0:01:14]} Nf6 {[%emt 0:02:51]} 8. O-O {[%emt 0:00:28]} Bb4 {[%emt 0:04:24]} 9. Qd3 {[%emt 0:04:47]} O-O {[%emt 0:07:41]} 10. f4 {[%emt 0:03:56]} d6 {[%emt 0:05:39]} 11. Bf3 {[%emt 0:01:28]} b5 {[%emt 0:05:43]} 12. Be3 {[%emt 0:02:35]} Bb7 {[%emt 0:03:45]} 13. Rad1 {[%emt 0:01:21]} Rfd8 {[%emt 0:04:10]} 14. a3 {[%emt 0:04:52]} Bxc3 {[%emt 0:01:16]} 15. Qxc3 {[%emt 0:00:24]} Rac8 {[%emt 0:01:41]} 16. Rf2 {[%emt 0:05:50]} Rd7 {[%emt 0:03:51]} 17. Rfd2 {[%emt 0:08:05]} Ne7 {[%emt 0:05:41]} 18. Qxc7 {[%emt 0:01:19]} Rdxc7 {[%emt 0:01:18]} 19. Rxd6 {[%emt 0:01:08]} Rxc2 {[%emt 0:01:40]} 20. Rd8+ {[%emt 0:00:32]} Ne8 {[%emt 0:00:49]} 21. Nc5 {[%emt 0:03:02]} Bc6 {[%emt 0:02:04]} 22. Rxc8 {[%emt 0:04:32]} Nxc8 {[%emt 0:00:14]} 23. Nxa6 {[%emt 0:01:35]} Rxb2 {[%emt 0:02:26]} 24. Nb4 {[%emt 0:01:05]} Bb7 {[%emt 0:03:09]} 25. Rd8 {[%emt 0:00:36]} Kf8 {[%emt 0:01:01]} 26. Bc5+ {[%emt 0:00:14]} Ne7 {[%emt 0:01:30]} 27. Rd7 {[%emt 0:00:23]} Bc8 {[%emt 0:02:48]} 28. Bxe7+ {[%emt 0:00:30]} Kg8 {[%emt 0:00:15]} 29. Rd8 {[%emt 0:00:10]} h6 {[%emt 0:00:36]} 30. Rxe8+ {[%emt 0:00:06]} Kh7 {[%emt 0:00:11]} 31. Rxc8 {[%emt 0:00:08]} Rb1+ {[%emt 0:00:20]} 32. Kf2 {[%emt 0:00:09]} Ra1 {[%emt 0:01:06]} 33. Rc3 {[%emt 0:00:31]} Rb1 {[%emt 0:00:51]} 34. Bh5 {[%emt 0:00:11]} f6 {[%emt 0:00:50]} 35. f5 {[%emt 0:00:21]} exf5 {[%emt 0:00:58]} 36. exf5 {[%emt 0:00:08]} g6 {[%emt 0:00:38]} 37. Bxg6+ {[%emt 0:00:16]} Kg7 {[%emt 0:00:17]} 38. Nd5 {[%emt 0:00:15]} Rd1 {[%emt 0:00:47]} 39. Bxf6+ {[%emt 0:00:10]} Kg8 40. Rc8# 1-0

[Event "FIDE WCCC G10 2018"]
[Site "Santiago de Compostela"]
[Date "2018.11.07"]
[Round "3"]
[White "Anupam M Sreekumar"]
[Black "Vu, My Linh"]
[Result "0-1"]
[ECO "E90"]
[WhiteElo "1615"]
[BlackElo "1349"]
[Annotator "NA RC"]
[PlyCount "90"]
[EventDate "2018.11.04"]
[EventType "swiss"]
[EventCountry "ESP"]
[SourceTitle "playchess.com"]
[Source "ChessBase"]
[SourceQuality "1"]
[TimeControl "40/5400+30:1800+30"]

1. e4 {[%emt 0:00:00]} g6 {[%emt 0:00:00]} 2. d4 {[%emt 0:00:01]} Bg7 {[%emt 0:00:00]} 3. c4 {[%emt 0:00:20]} d6 {[%emt 0:00:15]} 4. Nf3 {[%emt 0:00:23]} Nf6 {[%emt 0:00:14]} 5. Nc3 {[%emt 0:00:17]} O-O {[%emt 0:00:16]} 6. h3 {[%emt 0:00:28]} e5 {[%emt 0:00:19]} 7. d5 {[%emt 0:00:34]} a5 {[%emt 0:00:17]} 8. Bg5 {[%emt 0:00:44]} h6 {[%emt 0:00:38]} 9. Be3 {[%emt 0:00:31]} Nh5 {[%emt 0:00:58]} 10. Qd2 {[%emt 0:02:47]} g5 {[%emt 0:01:12]} 11. Be2 {[%emt 0:01:40]} Nf4 {[%emt 0:02:08]} 12. Bxf4 {[%emt 0:05:38]} exf4 {[%emt 0:00:36]} 13. Nh2 {[%emt 0:01:25]} f5 {[%emt 0:01:10]} 14. h4 {[%emt 0:05:39]} fxe4 {[%emt 0:02:06]} 15. hxg5 {[%emt 0:02:13]} Qxg5 {[%emt 0:02:30]} 16. Nxe4 {[%emt 0:01:39]} Qe7 {[%emt 0:01:43]} 17. Bd3 {[%emt 0:05:43]} Bf5 {[%emt 0:03:15]} 18. O-O-O {[%emt 0:02:39]} Na6 {[%emt 0:02:49]} 19. Rde1 {[%emt 0:01:49]} Qd7 {[%emt 0:02:59]} 20. a3 {[%emt 0:04:42]} Bxe4 {[%emt 0:02:24]} 21. Bxe4 {[%emt 0:00:32]} b5 {[%emt 0:01:24]} 22. Bf3 {[%emt 0:03:29]} Nc5 {[%emt 0:01:08]} 23. Qc2 {[%emt 0:01:12]} bxc4 {[%emt 0:00:46]} 24. Bg4 {[%emt 0:02:47]} Qb5 {[%emt 0:03:44]} 25. Be6+ {[%emt 0:02:41]} Kh8 {[%emt 0:00:47]} 26. Ng4 {[%emt 0:06:28]} Rab8 {[%emt 0:04:40]} 27. Nxh6 {[%emt 0:03:21]} Qxb2+ {[%emt 0:00:14]} 28. Qxb2 {[%emt 0:01:14]} Nd3+ 29. Kd1 {[%emt 0:02:33]} Nxb2+ {[%emt 0:00:56]} 30. Kc2 {[%emt 0:00:09]} Bxh6 {[%emt 0:00:11]} 31. Rxh6+ {[%emt 0:00:12]} Kg7 {[%emt 0:00:15]} 32. Reh1 {[%emt 0:01:05]} Na4 {[%emt 0:01:18]} 33. Rh7+ {[%emt 0:01:15]} Kf6 {[%emt 0:00:45]} 34. Rxc7 {[%emt 0:01:16]} Rb2+ {[%emt 0:00:30]} 35. Kc1 {[%emt 0:00:16]} Rfb8 {[%emt 0:01:15]} 36. Rd1 {[%emt 0:04:22]} Nc3 {[%emt 0:02:59]} 37. Rd2 {[%emt 0:05:59]} Rb1+ {[%emt 0:01:13]} 38. Kc2 {[%emt 0:00:09]} Ne4 {[%emt 0:00:52]} 39. Rxc4 {[%emt 0:02:37]} R1b2+ {[%emt 0:00:39]} 40. Kc1 {[%emt 0:00:00]} Nxd2 {[%emt 0:00:00]} 41. Rxf4+ {[%emt 0:02:25]} Ke5 {[%emt 0:01:49]} 42. Rf5+ {[%emt 0:00:45]} Kd4 {[%emt 0:00:08]} 43. Rf4+ {[%emt 0:00:07]} Kc3 {[%emt 0:00:06]} 44. Bf5 {[%emt 0:00:41]} Rb1+ {[%emt 0:00:11]} 45. Bxb1 {[%emt 0:00:17]} Rxb1# 0-1

[Event "FIDE WCCC G10 2018"]
[Site "Santiago de Compostela"]
[Date "2018.11.07"]
[Round "3"]
[White "Szczotka, Klara"]
[Black "Kurmanalina, Deniza"]
[Result "1-0"]
[ECO "B40"]
[WhiteElo "1581"]
[BlackElo "1320"]
[Annotator "NA RC"]
[PlyCount "85"]
[EventDate "2018.11.04"]
[EventType "swiss"]
[EventCountry "ESP"]
[SourceTitle "playchess.com"]
[Source "ChessBase"]
[SourceQuality "1"]
[TimeControl "40/5400+30:1800+30"]

1. e4 {[%emt 0:00:00]} c5 {[%emt 0:00:00]} 2. Nf3 {[%emt 0:00:00]} e6 {[%emt 0:00:00]} 3. d4 {[%emt 0:00:00]} cxd4 {[%emt 0:00:00]} 4. Nxd4 {[%emt 0:00:00]} Nf6 {[%emt 0:00:08]} 5. Bd3 {[%emt 0:00:11]} Nc6 {[%emt 0:00:07]} 6. Nb3 {[%emt 0:00:15]} d5 {[%emt 0:01:51]} 7. Qe2 {[%emt 0:01:51]} Qc7 {[%emt 0:07:01]} 8. Nc3 {[%emt 0:06:45]} Bb4 {[%emt 0:01:53]} 9. Bd2 {[%emt 0:00:08]} O-O {[%emt 0:01:43]} 10. O-O {[%emt 0:00:49]} a6 {[%emt 0:02:43]} 11. a3 {[%emt 0:00:44]} Bd6 {[%emt 0:00:58]} 12. h3 {[%emt 0:00:36]} b5 {[%emt 0:01:16]} 13. f4 {[%emt 0:03:30]} dxe4 {[%emt 0:07:49]} 14. Nxe4 {[%emt 0:00:18]} Nxe4 {[%emt 0:06:00]} 15. Bxe4 {[%emt 0:00:49]} Bb7 {[%emt 0:01:51]} 16. Rad1 {[%emt 0:03:24]} Rac8 {[%emt 0:07:52]} 17. g3 {[%emt 0:17:01]} Ne7 {[%emt 0:06:28]} 18. Ba5 {[%emt 0:10:31]} Bc5+ {[%emt 0:01:46]} 19. Kh2 {[%emt 0:00:49]} Bb6 {[%emt 0:01:19]} 20. Bxb6 {[%emt 0:03:05]} Qxb6 {[%emt 0:00:52]} 21. Bxb7 {[%emt 0:00:17]} Qxb7 {[%emt 0:00:53]} 22. c3 {[%emt 0:01:04]} Rfd8 {[%emt 0:02:02]} 23. Nd4 {[%emt 0:00:49]} h6 {[%emt 0:01:24]} 24. Rd3 {[%emt 0:05:34]} Nd5 {[%emt 0:06:12]} 25. Rfd1 {[%emt 0:01:53]} Kh8 {[%emt 0:03:14]} 26. f5 {[%emt 0:06:36]} e5 {[%emt 0:17:12]} 27. Nb3 {[%emt 0:03:44]} Rd6 {[%emt 0:04:01]} 28. Qxe5 {[%emt 0:13:32]} Rcd8 {[%emt 0:00:12]} 29. R1d2 {[%emt 0:02:00]} f6 {[%emt 0:02:17]} 30. Qe2 {[%emt 0:04:03]} Qc7 {[%emt 0:01:49]} 31. Nd4 {[%emt 0:01:53]} Qc8 {[%emt 0:03:11]} 32. Ne6 {[%emt 0:02:12]} R8d7 {[%emt 0:00:32]} 33. Qf3 {[%emt 0:01:39]} Qc4 {[%emt 0:02:21]} 34. Rd4 {[%emt 0:01:03]} Qc6 {[%emt 0:01:58]} 35. Nf4 {[%emt 0:01:42]} Qc5 {[%emt 0:06:04]} 36. Rxd5 {[%emt 0:01:05]} Rxd5 {[%emt 0:00:33]} 37. Rxd5 {[%emt 0:00:08]} Rxd5 {[%emt 0:00:10]} 38. Nxd5 {[%emt 0:00:33]} a5 {[%emt 0:00:24]} 39. Kg2 {[%emt 0:00:52]} Qc4 {[%emt 0:00:30]} 40. Nf4 {[%emt 0:00:00]} Qb3 {[%emt 0:00:00]} 41. Qe2 {[%emt 0:02:12]} Qf7 {[%emt 0:00:25]} 42. Qxb5 {[%emt 0:00:23]} Qe7 {[%emt 0:00:34]} 43. Ng6+ {[%emt 0:00:15]} 1-0

[Event "FIDE WCCC G10 2018"]
[Site "Santiago de Compostela"]
[Date "2018.11.07"]
[Round "3"]
[White "Chen, Yining"]
[Black "Rajanya Datta"]
[Result "1-0"]
[ECO "D43"]
[WhiteElo "1457"]
[BlackElo "1312"]
[Annotator "NA RC"]
[PlyCount "103"]
[EventDate "2018.11.04"]
[EventType "swiss"]
[EventCountry "ESP"]
[SourceTitle "playchess.com"]
[Source "ChessBase"]
[SourceQuality "1"]
[TimeControl "40/5400+30:1800+30"]

1. d4 {[%emt 0:00:00]} Nf6 {[%emt 0:00:00]} 2. Nf3 {[%emt 0:00:00]} d5 {[%emt 0:00:00]} 3. c4 {[%emt 0:00:41]} e6 {[%emt 0:00:06]} 4. Nc3 {[%emt 0:00:05]} c6 {[%emt 0:00:28]} 5. Bg5 {[%emt 0:00:05]} Be7 {[%emt 0:00:06]} 6. e3 {[%emt 0:00:22]} O-O {[%emt 0:00:17]} 7. a3 {[%emt 0:00:54]} Nbd7 {[%emt 0:00:41]} 8. Bd3 {[%emt 0:01:02]} Re8 {[%emt 0:00:45]} 9. O-O {[%emt 0:00:33]} h6 {[%emt 0:00:59]} 10. Bh4 {[%emt 0:00:15]} dxc4 {[%emt 0:00:43]} 11. Bxc4 {[%emt 0:00:07]} Nd5 {[%emt 0:00:09]} 12. Bg3 {[%emt 0:04:10]} N7f6 {[%emt 0:05:01]} 13. Qc2 {[%emt 0:02:38]} Bd6 {[%emt 0:02:38]} 14. Bxd6 {[%emt 0:02:51]} Qxd6 {[%emt 0:00:10]} 15. e4 {[%emt 0:00:06]} Nxc3 {[%emt 0:00:57]} 16. bxc3 {[%emt 0:00:05]} Qc7 {[%emt 0:12:04]} 17. e5 {[%emt 0:02:03]} Nd5 {[%emt 0:00:35]} 18. Nd2 {[%emt 0:01:35]} b5 {[%emt 0:02:45]} 19. Bd3 {[%emt 0:02:14]} Nf4 {[%emt 0:02:11]} 20. Be4 {[%emt 0:03:07]} Bb7 {[%emt 0:00:55]} 21. Nb3 {[%emt 0:01:23]} a5 {[%emt 0:05:04]} 22. Nc5 {[%emt 0:01:01]} Ba6 {[%emt 0:00:42]} 23. g3 {[%emt 0:03:50]} Nd5 {[%emt 0:03:20]} 24. Rfc1 {[%emt 0:05:38]} Red8 {[%emt 0:04:59]} 25. Rab1 {[%emt 0:03:57]} Nb6 {[%emt 0:03:40]} 26. Bd3 {[%emt 0:03:42]} Bc8 {[%emt 0:03:21]} 27. f4 {[%emt 0:03:30]} Nd7 {[%emt 0:00:21]} 28. Ne4 {[%emt 0:01:34]} Ba6 {[%emt 0:01:55]} 29. Nd6 {[%emt 0:01:32]} Nb6 {[%emt 0:02:18]} 30. Qg2 {[%emt 0:01:53]} Nc8 {[%emt 0:00:37]} 31. Ne4 {[%emt 0:02:13]} Nb6 {[%emt 0:04:48]} 32. Nc5 {[%emt 0:00:28]} Nd5 {[%emt 0:13:14]} 33. a4 {[%emt 0:03:05]} Rdb8 {[%emt 0:06:49]} 34. Qe4 {[%emt 0:04:41]} g6 {[%emt 0:01:30]} 35. Nxa6 {[%emt 0:10:04]} Rxa6 {[%emt 0:00:11]} 36. axb5 {[%emt 0:00:11]} cxb5 {[%emt 0:05:12]} 37. Bxb5 {[%emt 0:00:28]} Rab6 {[%emt 0:01:51]} 38. c4 {[%emt 0:00:36]} Qb7 {[%emt 0:02:31]} 39. Ra1 {[%emt 0:03:15]} Nc7 {[%emt 0:06:00]} 40. Qxb7 {[%emt 0:00:00]} R8xb7 {[%emt 0:00:00]} 41. Rxa5 {[%emt 0:01:15]} Nxb5 {[%emt 0:00:20]} 42. cxb5 {[%emt 0:00:06]} Rxb5 {[%emt 0:00:15]} 43. Rc8+ {[%emt 0:00:42]} Kg7 {[%emt 0:00:11]} 44. Raa8 {[%emt 0:01:02]} f5 {[%emt 0:02:54]} 45. exf6+ {[%emt 0:06:15]} Kxf6 {[%emt 0:00:05]} 46. Rc2 {[%emt 0:01:54]} Rb4 {[%emt 0:02:40]} 47. Rd8 {[%emt 0:01:25]} Kf5 {[%emt 0:02:18]} 48. Re2 {[%emt 0:01:39]} Kg4 {[%emt 0:02:25]} 49. Kg2 {[%emt 0:01:13]} Rb2 {[%emt 0:00:55]} 50. h3+ {[%emt 0:00:35]} Kf5 {[%emt 0:00:16]} 51. Rf8+ {[%emt 0:00:11]} Rf7 {[%emt 0:00:48]} 52. Rxf7# {[%emt 0:00:01]} 1-0

[Event "FIDE WCCC G10 2018"]
[Site "Santiago de Compostela"]
[Date "2018.11.07"]
[Round "3"]
[White "Morden, SImone"]
[Black "Edithso, Samantha"]
[Result "0-1"]
[ECO "E61"]
[WhiteElo "1443"]
[BlackElo "1879"]
[Annotator "NA RC"]
[PlyCount "94"]
[EventDate "2018.11.04"]
[EventType "swiss"]
[EventCountry "ESP"]
[SourceTitle "playchess.com"]
[Source "ChessBase"]
[SourceQuality "1"]
[TimeControl "40/5400+30:1800+30"]

{[%evp 8,93,36,17,28,10,32767,32767,32767,32767,32767,32767,69,59,79,32767,61,55,63,21,79,70,120,-4,-5,-7,0,-45,35,-93,-45,-60,-8,-22,-12,-62,-50,-65,-53,-68,-57,-70,-6,-14,0,-140,0,-56,-44,-43,0,-156,-88,-168,-134,-171,-144,-148,-160,-214,-28,-725,-825,-735,-839,-892,-898,-983,-1166,-29990,-29991,-29994,-769,-29995,-29990,-29991,-29992,-29994,-29995,-29995,-29996,-29996,-29997,-29997,-29998,-29998,-29999,-29999]} 1. d4 {[%emt 0:00:00]} Nf6 {[%emt 0:00:00]} 2. c4 {[%emt 0:00:00]} g6 {[%emt 0:00:00]} 3. Nc3 {[%emt 0:00:00]} Bg7 {[%emt 0:00:00]} 4. Nf3 {[%emt 0:00:01]} d6 {[%emt 0:00:00]} 5. Bf4 {[%emt 0:00:07]} O-O {[%emt 0:00:20]} 6. e3 {[%emt 0:00:09]} Bg4 {[%emt 0:02:22]} 7. Be2 {[%emt 0:00:52]} Nbd7 {[%emt 0:00:56]} 8. h3 {[%emt 0:00:23]} Bxf3 {[%emt 0:00:11]} 9. Bxf3 {[%emt 0:00:10]} c6 {[%emt 0:00:26]} ({Better is} 9... e5 $11 10. dxe5 Nxe5) 10. O-O {[%emt 0:00:09] LiveBook: 3 Games} h6 {[%emt 0:01:25] E61: King's Indian: Early deviations for White, including Smyslov System} (10... Re8 11. Bh2 e5 12. dxe5 Nxe5 13. Bxe5 dxe5 14. Qxd8 Raxd8 15. Rfd1 Kf8 16. Rxd8 Rxd8 17. Rd1 {½-½ (17) Martinez,R (2411)-Salvador,R (2455) Milan 2006}) 11. Rc1 $146 {[%emt 0:01:20]} ({Predecessor:} 11. e4 Nh7 12. Qd2 g5 13. Bh2 Qb6 14. Rad1 Rad8 15. b3 c5 16. Na4 Qa6 17. d5 Ne5 18. Be2 {0-1 (45) Seeger,G-Schuetze,N Germany 1995}) 11... Nh7 {[%emt 0:02:43]} 12. b4 {[%emt 0:01:19]} e5 {[%emt 0:01:23]} 13. Bh2 {[%emt 0:00:13]} f5 {[%emt 0:03:44]} (13... Ng5 $11 {remains equal.}) 14. c5 {[%emt 0:01:50]} d5 {[%emt 0:01:25]} 15. Be2 {[%emt 0:00:40]} (15. Nxd5 $1 $16 Ng5 16. Nc3) 15... exd4 {[%emt 0:01:11]} 16. exd4 {[%emt 0:00:11]} Ng5 {[%emt 0:04:22]} 17. Bd6 {[%emt 0:01:51]} Re8 {[%emt 0:00:23]} 18. Qd3 {[%emt 0:00:51]} (18. b5 $14 {is the one way to stay ahead.}) 18... Qf6 {[%emt 0:01:39]} (18... a5 $17 19. b5 Ne6) 19. Rcd1 {[%emt 0:00:58]} Ne4 {[%emt 0:00:35]} (19... a5 $15 20. b5 Ne6) 20. Nxe4 {[%emt 0:00:27]} Rxe4 {[%emt 0:01:34]} 21. Bf3 {[%emt 0:02:59]} Rxd4 {[%emt 0:04:44]} 22. Qxd4 {[%emt 0:00:17]} Qxd4 {[%emt 0:00:02]} 23. Rxd4 {[%emt 0:00:13]} Bxd4 {[%emt 0:00:08]} 24. Re1 $1 {[%emt 0:00:16]} Bf6 {[%emt 0:00:12]} 25. g4 {[%emt 0:01:07]} a5 {[%emt 0:02:46]} 26. gxf5 {[%emt 0:01:28]} (26. b5 $1 $11) 26... gxf5 {[%emt 0:03:28]} ({Black should try} 26... axb4 $17 27. fxg6 Nf8) 27. bxa5 {[%emt 0:02:07]} (27. b5 $11) 27... Rxa5 {[%emt 0:03:53]} 28. Re8+ {[%emt 0:00:13]} Kg7 {[%emt 0:00:22]} 29. Rc8 $2 {[%emt 0:00:37] [#]} ({White must play} 29. Bh5 $11) 29... Nxc5 {[%emt 0:05:42]} ({Black should try} 29... Kg6 $1 30. Rc7 Ne5 31. Bxe5 Bxe5 32. Rxb7 Rxc5) 30. Bh5 {[%emt 0:01:03] [#]} (30. Bxd5 $17 {was worth a try.} cxd5 31. Rxc5 Rxc5 32. Bxc5) 30... Ne6 $1 {[%emt 0:01:58]} 31. Re8 {[%emt 0:00:17] [#]} Ng5 $1 {[%emt 0:01:36]} 32. h4 {[%emt 0:00:47]} Ne4 {[%emt 0:00:48]} ({Weaker is} 32... Rxa2 33. hxg5 hxg5 34. Bf8+ Kh7 35. Re6 $16) 33. Bb4 {[%emt 0:00:30]} (33. Bf8+ $17 {war angesagt.} Kh7 34. Be7) 33... Rxa2 $2 {[%emt 0:00:43]} (33... Ra6 $19 34. Bf8+ Kh7) 34. Rc8 $2 {[%emt 0:00:18]} (34. Rf8 $11) 34... Bd4 {[%emt 0:03:12]} 35. Rc7+ {[%emt 0:00:15]} Kf6 {[%emt 0:00:30]} 36. Rf7+ {[%emt 0:00:43]} Ke5 {[%emt 0:00:11]} 37. Re7+ {[%emt 0:02:28]} Kf4 {[%emt 0:00:36]} 38. Rh7 {[%emt 0:01:21]} Bxf2+ {[%emt 0:00:11]} 39. Kf1 {[%emt 0:00:10]} Ng3+ {[%emt 0:00:25]} 40. Kg2 {[%emt 0:00:00]} Nxh5 {[%emt 0:00:00]} 41. Bd6+ {[%emt 0:00:24]} Kg4 {[%emt 0:01:25]} 42. Rxh6 {[%emt 0:01:05]} Be3+ {[%emt 0:00:15]} 43. Kf1 {[%emt 0:00:11]} Kf3 {[%emt 0:01:16]} 44. Be5 {[%emt 0:00:27]} Rc2 {[%emt 0:00:36]} 45. Bb2 {[%emt 0:00:26]} Rxb2 {[%emt 0:00:23]} 46. Rxc6 {[%emt 0:00:18]} Rb1+ {[%emt 0:00:12]} 47. Rc1 {[%emt 0:00:06]} Rxc1# {[%emt 0:00:04]} 0-1

[Event "FIDE WCCC G10 2018"]
[Site "Santiago de Compostela"]
[Date "2018.11.07"]
[Round "3"]
[White "Kirtadze, Anastasia"]
[Black "Shvedova, Alexandra"]
[Result "0-1"]
[ECO "A13"]
[WhiteElo "1373"]
[BlackElo "1782"]
[Annotator "NA RC"]
[PlyCount "124"]
[EventDate "2018.11.04"]
[EventType "swiss"]
[EventCountry "ESP"]
[SourceTitle "playchess.com"]
[Source "ChessBase"]
[SourceQuality "1"]
[TimeControl "40/5400+30:1800+30"]

1. c4 {[%emt 0:00:00]} e6 {[%emt 0:00:00]} 2. Nf3 {[%emt 0:00:00]} d5 {[%emt 0:00:00]} 3. b3 {[%emt 0:00:06]} Nf6 {[%emt 0:00:23]} 4. Bb2 {[%emt 0:00:48]} Be7 {[%emt 0:00:08]} 5. e3 {[%emt 0:00:56]} O-O {[%emt 0:00:14]} 6. Be2 {[%emt 0:00:19]} c5 {[%emt 0:00:34]} 7. O-O {[%emt 0:00:25]} b6 {[%emt 0:00:44]} 8. d4 {[%emt 0:01:30]} Bb7 {[%emt 0:00:17]} 9. Nc3 {[%emt 0:01:27]} Nbd7 {[%emt 0:14:31]} 10. Rc1 {[%emt 0:10:59]} Rc8 {[%emt 0:03:50]} 11. Qd2 {[%emt 0:06:12]} dxc4 {[%emt 0:06:33]} 12. bxc4 {[%emt 0:01:18]} Bxf3 {[%emt 0:02:35]} 13. Bxf3 {[%emt 0:02:23]} cxd4 {[%emt 0:00:17]} 14. exd4 {[%emt 0:00:22]} Rxc4 {[%emt 0:03:10]} 15. Nb5 {[%emt 0:00:18]} Rxc1 {[%emt 0:00:28]} 16. Rxc1 {[%emt 0:00:07]} Ne5 {[%emt 0:03:29]} 17. Bb7 {[%emt 0:02:26]} Qd7 {[%emt 0:07:31]} 18. Ba6 {[%emt 0:07:09]} Nc6 {[%emt 0:04:35]} 19. a4 {[%emt 0:05:19]} Nd5 {[%emt 0:07:15]} 20. Na3 {[%emt 0:03:23]} Nc7 {[%emt 0:10:01]} 21. Bb7 {[%emt 0:10:05]} Na5 {[%emt 0:01:31]} 22. Qc2 {[%emt 0:09:49]} Bd6 {[%emt 0:02:19]} 23. Be4 {[%emt 0:01:09]} h6 {[%emt 0:01:49]} 24. Bd3 {[%emt 0:08:04]} Bf4 {[%emt 0:03:23]} 25. Re1 {[%emt 0:00:58]} Rc8 {[%emt 0:02:17]} 26. Qe2 {[%emt 0:04:18]} Qd6 {[%emt 0:04:09]} 27. g3 {[%emt 0:00:29]} Bg5 {[%emt 0:00:07]} 28. h4 {[%emt 0:00:47]} Be7 {[%emt 0:00:40]} 29. Qe4 {[%emt 0:00:44]} f5 {[%emt 0:01:07]} 30. Qe2 {[%emt 0:00:24]} Bf6 {[%emt 0:00:40]} 31. Nc2 {[%emt 0:03:31]} Qd7 {[%emt 0:03:17]} 32. Qh5 {[%emt 0:02:27]} Qe8 {[%emt 0:02:20]} 33. Qf3 {[%emt 0:00:44]} Qxa4 {[%emt 0:02:14]} 34. g4 {[%emt 0:01:16]} Qc6 {[%emt 0:01:08]} 35. Qg3 {[%emt 0:00:52]} f4 {[%emt 0:03:02]} 36. Qxf4 {[%emt 0:00:45]} Bxh4 {[%emt 0:00:22]} 37. Ba3 {[%emt 0:00:08]} Bg5 {[%emt 0:00:32]} 38. Qg3 {[%emt 0:00:44]} Nd5 {[%emt 0:03:50]} 39. Nb4 {[%emt 0:01:26]} Qc7 {[%emt 0:01:05]} 40. Qg2 {[%emt 0:00:00]} Nf4 {[%emt 0:00:00]} 41. Qe4 {[%emt 0:07:34]} Nxd3 {[%emt 0:03:22]} 42. Qxe6+ {[%emt 0:00:38]} Kh8 {[%emt 0:00:10]} 43. Nxd3 {[%emt 0:00:21]} Nc4 {[%emt 0:09:59]} 44. Bc1 {[%emt 0:03:23]} Bf6 {[%emt 0:01:26]} 45. Nf4 Bxd4 {[%emt 0:00:30]} 46. Ng6+ Kh7 {[%emt 0:00:30]} 47. Qf5 Qg3+ {[%emt 0:00:30]} 48. Kf1 Qxf2+ {[%emt 0:00:30]} 49. Qxf2 Bxf2 {[%emt 0:00:30]} 50. Kxf2 Kxg6 {[%emt 0:00:30]} 51. Kg3 a5 {[%emt 0:00:30]} 52. Bf4 b5 {[%emt 0:00:30]} 53. Rb1 b4 {[%emt 0:00:30]} 54. Rb3 Nb6 {[%emt 0:00:30]} 55. Bd2 Nd5 {[%emt 0:00:30]} 56. Kf3 a4 {[%emt 0:00:30]} 57. Rd3 Nc3 {[%emt 0:00:30]} 58. Ke3 a3 {[%emt 0:00:30]} 59. Rd6+ Kh7 {[%emt 0:00:30]} 60. Kd3 Ra8 {[%emt 0:00:30]} 61. Kc2 a2 {[%emt 0:00:30]} 62. Kb2 a1=Q+ {[%emt 0:00:30]} 0-1